bitfinex/quotes_ETHUSD_20220201
["timestamp","ask_amount","ask_price","bid_price","bid_amount"]
[1643703551571,7.2861,2745.3,2745.2,0.4821]
[1643703551771,7.2861,2745.3,2745.2,2.0659916]
[1643703552174,7.2861,2745.3,2745.2,0.4821]
[1643703552575,7.2861,2745.3,2745.2,0.1821]
[1643703552774,7.2861,2745.3,2745.1,3.64289609]
[1643703553375,7.2861,2745.3,2745.2,1.877288]
[1643703553573,7.28520566,2745.3,2745.1,3.46079609]
[1643703553975,7.28520566,2745.3,2745.2,1.87639198]
[1643703555328,7.28520566,2745.3,2745.1,3.46079609]
[1643703555525,7.28520566,2745.3,2745.2,1.87635615]
[1643703555726,7.28520566,2745.3,2745.1,3.46079609]
[1643703557728,7.28520566,2745.3,2745.2,1.87415982]
[1643703560569,7.28520566,2745.3,2745.2,1.90771558]
[1643703563223,3.37827235,2745.3,2745.2,2.20771558]
[1643703563432,0.1821,2746.2,2745.4,0.91048]
[1643703563624,1.53669159,2746.1,2745.6,0.91045]
[1643703563823,0.1819,2746.6,2745.7,2.19517819]
[1643703564024,1.53663281,2746.5,2745.7,2.19517819]
[1643703564227,1.53663281,2746.5,2746.3,0.43105864]
[1643703564228,0.1819,2746.4,2746.3,0.43105864]
[1643703564423,1.71853281,2746.4,2745.7,2.49517819]
[1643703564630,1.53663281,2746.3,2746.0,1.82084]
[1643703564824,1.53663281,2746.3,2746.1,0.91042]
[1643703565029,1.53663281,2746.2,2746.1,1.21042]
[1643703565226,1.53663281,2746.2,2746.1,3.79981401]
[1643703565424,1.53663281,2746.5,2746.1,1.9366522]
[1643703565634,1.71853281,2746.4,2746.1,0.3]
[1643703565826,1.53663281,2746.3,2746.1,0.3]
[1643703566279,0.39582747,2746.7,2746.0,3.64173]
[1643703566280,1.53663281,2746.2,2746.0,3.94173]
[1643703566499,0.1819,2746.6,2746.3,0.44495966]
[1643703566781,1.53662523,2746.5,2746.3,1.82098]
[1643703567179,1.53662523,2746.5,2746.4,0.3]
[1643703567580,1.53662523,2746.6,2746.4,0.3]
[1643703567782,0.1819,2746.5,2746.4,0.3]
[1643703568078,1.71852523,2746.5,2746.4,0.64878991]
[1643703568280,1.53662523,2746.5,2746.4,0.64878991]
[1643703568486,1.53662523,2746.6,2746.4,0.64878991]
[1643703568685,1.53662523,2746.5,2746.4,0.64878991]
[1643703568887,1.71852523,2746.5,2746.4,0.64878991]
[1643703569088,1.71852523,2746.5,2746.4,1.55916991]
[1643703569089,1.53662523,2746.5,2746.4,1.55916991]
[1643703569486,0.8689151,2747.1,2746.6,0.72255533]
[1643703569714,0.8689151,2747.1,2746.6,1.02255533]
[1643703569715,1.53652206,2747.0,2746.6,1.02255533]
[1643703569919,0.1819,2746.9,2746.6,1.02255533]
[1643703570116,1.53652206,2746.8,2746.6,0.3]
[1643703570317,1.53652206,2746.8,2746.5,1.21035]
[1643703570515,1.53652206,2746.7,2746.5,1.21035]
[1643703570923,1.53652206,2746.6,2746.5,1.21035]
[1643703571320,0.1819,2747.1,2746.5,1.21035]
[1643703571321,1.53652206,2747.0,2746.5,2.01755053]
[1643703571517,0.1819,2746.9,2746.5,2.01755053]
[1643703571716,1.53652206,2746.8,2746.5,2.92787053]
[1643703571926,1.53652206,2746.7,2746.5,2.92787053]
[1643703572117,1.53652206,2746.6,2746.5,2.92787053]
[1643703572419,1.53652206,2746.6,2746.5,2.12067]
[1643703572817,1.51688309,2747.0,2746.5,2.12067]
[1643703573019,0.95492771,2747.2,2746.5,2.12067]
[1643703573020,0.1819,2746.9,2746.5,2.12067]
[1643703573221,0.1819,2747.0,2746.5,2.12067]
[1643703573469,0.1819,2747.1,2746.5,3.99567]
[1643703573873,0.1819,2747.1,2746.9,0.31665136]
[1643703574076,0.95492771,2747.2,2746.9,0.31665136]
[1643703574077,1.13682771,2747.2,2746.9,0.31665136]
[1643703574582,1.13682771,2747.2,2746.8,0.3]
[1643703575872,0.95492771,2747.2,2746.8,0.3]
[1643703576072,0.95492771,2747.2,2746.6,0.3]
[1643703576276,0.95492771,2747.2,2746.5,0.3]
[1643703576277,0.1819,2747.1,2746.5,0.3]
[1643703577319,0.1819,2747.1,2746.6,1.32708839]
[1643703578527,1.13682771,2747.2,2746.6,0.41669839]
[1643703578727,1.82384281,2747.2,2746.6,0.41669839]
[1643703578927,1.82384281,2747.2,2746.5,0.3]
[1643703579329,0.6870151,2747.1,2746.5,0.3]
[1643703579533,0.93863067,2746.7,2746.5,0.3]
[1643703579930,0.6870151,2747.1,2746.6,0.31656697]
[1643703580428,0.6870151,2747.1,2746.4,0.1819]
[1643703580834,0.88091768,2747.2,2746.4,0.1819]
[1643703581471,0.6870151,2747.1,2746.4,0.1819]
[1643703581673,0.1819,2747.0,2746.4,0.1819]
[1643703581874,0.1819,2747.0,2746.3,3.03116]
[1643703582073,0.1819,2747.1,2746.3,3.03116]
[1643703582276,0.88091768,2747.2,2746.4,0.1819]
[1643703582475,0.71129449,2747.0,2746.4,0.1819]
[1643703582676,0.71129449,2747.0,2746.6,0.368911]
[1643703584375,0.71129449,2747.0,2746.5,1.21038]
[1643703584376,0.71129449,2747.0,2746.5,0.3]
[1643703584830,0.6870151,2747.1,2746.6,0.42666724]
[1643703585833,0.88091768,2747.2,2746.8,0.8943216]
[1643703586033,0.88091768,2747.2,2746.6,0.42666724]
[1643703588233,0.69901768,2747.2,2746.6,0.42666724]
[1643703589275,0.6870151,2747.1,2746.6,0.42666724]
[1643703589476,0.6870151,2747.0,2746.6,0.42666724]
[1643703589676,0.6870151,2747.1,2746.6,0.42666724]
[1643703590576,0.84826389,2747.0,2746.6,0.42666724]
[1643703590777,0.84826389,2747.0,2746.6,0.60856724]
[1643703591381,1.25597695,2747.0,2746.6,0.60856724]
[1643703591578,1.25597695,2747.0,2746.6,0.1819]
[1643703591977,1.94299205,2747.0,2746.6,0.1819]
[1643703592419,0.6870151,2746.9,2746.6,0.1819]
[1643703592621,6.8870151,2746.7,2746.6,0.1819]
[1643703592825,8.0367592,2746.7,2746.6,0.1819]
[1643703593019,8.2186592,2746.7,2746.6,0.1819]
[1643703593521,9.13457098,2746.7,2746.6,0.1819]
[1643703593738,8.2186592,2746.7,2746.6,0.1819]
[1643703594323,1.26985686,2746.4,2745.8,0.53854417]
[1643703594524,1.5367592,2746.3,2745.8,0.53854417]
[1643703597802,1.47782732,2746.3,2745.8,0.53854417]
[1643703598007,0.68745994,2746.5,2745.9,0.91057]
[1643703598301,1.0924953,2746.6,2746.0,0.4819]
[1643703598302,0.67516264,2746.6,2746.0,0.4819]
[1643703598708,0.67516264,2746.6,2746.3,0.3]
[1643703598909,0.85307515,2746.8,2746.3,0.3]
[1643703599107,1.76359895,2746.8,2746.3,0.3]
[1643703599509,0.33633496,2746.7,2746.3,0.36115863]
[1643703599737,1.76359895,2746.8,2746.3,0.36115863]
[1643703601951,0.3,2746.7,2746.3,0.36115863]
[1643703602145,3.2137957,2746.7,2746.1,0.1]
[1643703602345,4.12970748,2746.7,2746.1,0.1]
[1643703603050,0.8199034,2746.2,2746.1,0.1]
[1643703604474,0.8199034,2746.2,2745.8,0.83965985]
[1643703605874,0.8199034,2746.2,2745.8,0.53965985]
[1643703607075,0.8199034,2746.2,2745.8,0.65775985]
[1643703607324,0.1819,2746.6,2745.9,2.8013862]
[1643703607524,0.1819,2746.6,2746.0,0.3]
[1643703607726,0.1819,2746.6,2746.4,0.31799623]
[1643703607923,0.1819,2746.7,2745.9,2.17541899]
[1643703608329,0.91591178,2746.9,2746.3,0.91045]
[1643703608531,0.1819,2747.1,2746.4,2.02441953]
[1643703608731,0.91591178,2747.4,2746.4,2.50631953]
[1643703608932,0.68907828,2747.3,2746.4,3.52944542]
[1643703609131,0.68907828,2747.4,2746.5,0.437]
[1643703609329,0.68907828,2747.4,2747.1,0.44308807]
[1643703610028,3.55609637,2747.7,2747.1,1.35319807]
[1643703610029,0.68907828,2747.5,2747.1,1.35319807]
[1643703610235,0.68907828,2747.6,2747.2,0.3]
[1643703610631,0.68907828,2747.6,2747.2,1.39194]
[1643703611074,0.68907828,2747.6,2747.5,0.78514327]
[1643703611282,0.68907828,2747.7,2747.5,1.08514327]
[1643703611616,0.68907828,2747.7,2747.6,0.31886866]
[1643703611777,0.68907828,2747.8,2747.6,2.16942216]
[1643703612186,0.68907828,2747.8,2747.7,1.86028054]
[1643703612378,0.68907828,2747.9,2747.7,2.16028054]
[1643703612580,0.68907828,2748.0,2747.8,0.90996]
[1643703612777,0.1819,2747.9,2747.8,0.90996]
[1643703613381,0.1819,2747.9,2747.7,1.20996]
[1643703613382,0.87097828,2747.9,2747.7,1.20996]
[1643703613578,0.68907828,2747.9,2747.7,1.20996]
[1643703613778,0.68907828,2747.9,2747.7,2.11995]
[1643703613980,0.68907828,2748.0,2747.7,2.11995]
[1643703614178,0.68907828,2747.9,2747.7,0.3]
[1643703614379,0.68907828,2747.9,2747.6,0.31886866]
[1643703614580,0.68907828,2747.9,2747.6,0.91001]
[1643703614842,0.68907828,2747.9,2747.5,1.81998]
[1643703615039,0.68907828,2747.8,2747.3,1.82009]
[1643703615240,0.87097828,2747.7,2747.3,1.82009]
[1643703615439,0.68907828,2747.7,2747.3,1.82009]
[1643703615639,0.68907828,2747.7,2747.3,2.7302]
[1643703615843,0.87097828,2747.7,2747.2,1.82014]
[1643703616243,0.87097828,2747.7,2747.3,0.91015]
[1643703616444,0.87097828,2747.7,2747.2,1.82014]
[1643703616643,0.1819,2747.7,2747.3,0.35792873]
[1643703616844,0.1819,2747.7,2747.2,1.82014]
[1643703617045,0.1819,2747.7,2747.3,0.3]
[1643703617443,0.87097828,2747.7,2747.3,0.3]
[1643703617844,0.87097828,2747.7,2747.3,0.61769779]
[1643703617845,1.53618719,2747.6,2747.3,0.61769779]
[1643703618246,1.53618719,2747.6,2747.3,1.52781779]
[1643703618473,1.53618719,2747.6,2747.3,1.21012]
[1643703618681,1.53618719,2747.6,2747.3,0.3]
[1643703619778,1.53618719,2747.6,2747.3,0.42532174]
[1643703620277,1.53618719,2747.6,2747.3,0.72532174]
[1643703621281,2.40716547,2747.7,2747.3,0.72532174]
[1643703621479,1.53618719,2747.6,2747.3,0.72532174]
[1643703621876,1.53618719,2747.5,2747.3,0.72532174]
[1643703622224,2.45590383,2747.8,2747.3,0.72532174]
[1643703622225,1.53618719,2747.4,2747.3,0.72532174]
[1643703622624,1.53618719,2747.7,2747.3,0.72532174]
[1643703624428,1.53618719,2747.7,2747.3,0.3]
[1643703624637,1.53618719,2747.7,2747.1,2.07194062]
[1643703624829,1.53618719,2747.6,2747.4,0.76131042]
[1643703625031,1.53618719,2747.5,2747.4,0.76131042]
[1643703625232,1.53618719,2747.5,2747.4,3.64123972]
[1643703625531,0.1819,2748.2,2747.4,3.57366761]
[1643703625731,1.53587062,2748.1,2747.5,0.1819]
[1643703625972,1.53587062,2748.0,2747.7,0.42514465]
[1643703626172,0.49944178,2748.3,2747.5,0.1819]
[1643703626173,1.53587062,2747.9,2747.5,0.1819]
[1643703626377,1.53587062,2747.8,2747.5,2.16656257]
[1643703626574,0.49944178,2748.3,2747.5,2.16656257]
[1643703626795,1.53584662,2748.2,2747.7,0.90995]
[1643703627173,1.53584662,2748.2,2747.8,0.3]
[1643703627573,1.53584662,2748.1,2747.8,0.3]
[1643703627774,1.53584662,2748.0,2747.7,2.32103049]
[1643703627975,1.53584662,2747.9,2747.7,2.32103049]
[1643703628174,0.1819,2748.4,2747.8,1.88269794]
[1643703628416,1.53581349,2748.3,2747.8,1.88269794]
[1643703628578,1.53581349,2748.3,2747.8,2.18269794]
[1643703628779,1.53581349,2748.3,2747.9,0.78890992]
[1643703628980,1.53581349,2748.3,2747.8,1.20991]
[1643703630933,1.53581349,2748.3,2747.8,0.3]
[1643703631327,1.53581349,2748.3,2747.7,1.59166491]
[1643703631929,1.53581349,2748.3,2747.7,2.50162491]
[1643703632825,1.53581349,2748.3,2747.7,0.3]
[1643703633029,2.82959027,2748.2,2747.7,0.3]
[1643703633227,1.53581349,2748.1,2747.6,0.1819]
[1643703633688,0.87097828,2748.4,2747.7,0.012834]
[1643703633889,0.87097828,2748.7,2747.8,1.81952]
[1643703634094,0.91591178,2749.0,2747.8,1.81952]
[1643703634095,0.68907828,2748.8,2747.8,1.81952]
[1643703634288,0.1819,2748.7,2747.8,1.81952]
[1643703634487,0.1819,2748.7,2747.9,0.1819]
[1643703634686,0.33064165,2748.5,2748.0,0.76372558]
[1643703634901,0.33064165,2748.5,2747.9,1.09166]
[1643703635286,0.33064165,2748.5,2747.9,2.30146]
[1643703636288,0.33064165,2748.5,2747.9,4.24371672]
[1643703636890,0.73863508,2748.6,2747.9,4.24371672]
[1643703637224,0.68907828,2748.9,2747.9,4.24371672]
[1643703637425,0.1819,2748.8,2747.9,4.24371672]
[1643703637624,0.1819,2748.8,2747.9,2.30146]
[1643703637825,0.41036642,2748.5,2747.9,2.30146]
[1643703638026,0.41036642,2748.5,2748.0,0.76085247]
[1643703638226,0.41036642,2748.5,2747.9,1.39166]
[1643703638425,0.41036642,2748.5,2747.9,0.4819]
[1643703638630,0.41036642,2748.5,2747.9,0.1819]
[1643703639632,0.41036642,2748.5,2747.8,0.1819]
[1643703640233,0.41036642,2748.5,2747.6,4.7922]
[1643703640436,0.1819,2748.4,2747.3,2.00186]
[1643703640636,0.42636683,2747.5,2747.3,1.81996]
[1643703640834,0.42636683,2747.5,2747.0,4.07937]
[1643703641281,0.42636683,2747.5,2747.1,0.1819]
[1643703641479,0.1819,2747.8,2747.2,0.91149335]
[1643703642381,0.1819,2747.8,2747.2,2.12162335]
[1643703642681,0.9100898,2748.0,2747.2,2.12162335]
[1643703642881,0.1819,2747.9,2747.2,2.12162335]
[1643703643480,0.72029591,2748.0,2747.2,2.12162335]
[1643703643883,0.7141504,2748.0,2747.2,2.12162335]
[1643703644727,0.3399704,2747.7,2747.2,2.12162335]
[1643703646229,0.1819,2747.9,2747.2,3.99813711]
[1643703646430,0.7141504,2748.0,2747.4,0.91005]
[1643703646834,0.7141504,2748.0,2747.4,1.21005]
[1643703648031,0.3528961,2747.8,2747.4,1.21005]
[1643703648232,0.3528961,2747.8,2747.4,3.07500293]
[1643703648684,0.7141504,2748.0,2747.4,3.07500293]
[1643703649081,0.1819,2748.3,2747.4,3.07500293]
[1643703649682,0.39129586,2747.9,2747.4,3.07500293]
[1643703650483,0.1819,2748.3,2747.5,0.1819]
[1643703650682,0.1819,2748.3,2747.6,0.90997]
[1643703651085,0.87097828,2748.4,2747.7,0.3]
[1643703651884,0.3487417,2748.1,2747.7,0.3]
[1643703652531,0.85241573,2748.2,2747.6,0.50264837]
[1643703652731,0.68907828,2748.2,2747.6,0.50264837]
[1643703652929,0.68907828,2748.2,2747.7,0.1819]
[1643703653532,0.43005774,2748.1,2747.6,0.40752082]
[1643703653732,1.5358402,2748.0,2747.7,0.81357357]
[1643703653932,1.5358402,2747.9,2747.7,0.81357357]
[1643703654133,1.5358402,2747.8,2747.7,1.11357357]
[1643703654331,0.68907828,2748.1,2747.6,0.40752082]
[1643703654531,0.87097828,2748.1,2747.6,0.40752082]
[1643703654740,1.5358402,2748.0,2747.6,0.40752082]
[1643703654937,1.5358402,2747.9,2747.6,0.40752082]
[1643703655132,1.5358402,2747.8,2747.6,0.40752082]
[1643703655333,0.68907828,2748.2,2747.7,0.74632928]
[1643703655535,0.68907828,2748.2,2747.7,1.04632928]
[1643703655536,2.22489769,2748.2,2747.7,1.04632928]
[1643703656590,1.53581941,2748.1,2747.7,1.04632928]
[1643703656788,1.53581941,2748.0,2747.7,1.04632928]
[1643703656989,1.53581941,2747.9,2747.7,1.04632928]
[1643703657291,1.53581941,2747.8,2747.7,1.04632928]
[1643703657687,1.60051849,2748.2,2747.7,1.04632928]
[1643703657688,1.53581941,2748.1,2747.7,1.04632928]
[1643703657987,1.53581941,2748.0,2747.7,0.3]
[1643703658188,1.71771941,2748.1,2747.7,0.3]
[1643703658392,1.53581941,2748.0,2747.7,0.3]
[1643703658795,2.22489769,2748.2,2747.7,0.3]
[1643703658995,1.53581941,2748.1,2747.7,0.3]
[1643703659195,1.53581941,2748.0,2747.7,0.3]
[1643703659398,1.53581941,2747.9,2747.7,0.3]
[1643703659936,0.99,2749.1,2747.7,0.3]
[1643703659937,1.37193334,2747.8,2747.7,0.3]
[1643703660237,0.87097828,2748.2,2747.7,0.3]
[1643703660431,0.1819,2748.2,2747.7,0.3]
[1643703660633,0.68907828,2748.3,2747.7,0.3]
[1643703660832,1.10078444,2748.2,2747.7,0.3]
[1643703661034,1.28268444,2748.2,2747.7,0.3]
[1643703661932,0.93556406,2748.2,2747.7,0.3]
[1643703662132,0.75366406,2748.2,2747.7,0.3]
[1643703663134,0.68907828,2748.3,2747.7,0.3]
[1643703663597,0.68907828,2748.3,2747.8,1.86651917]
[1643703663793,0.68907828,2748.3,2747.8,2.77638917]
[1643703664194,0.68907828,2748.4,2747.8,2.77638917]
[1643703664426,0.1819,2748.3,2747.8,2.77638917]
[1643703664791,0.87097828,2748.3,2747.8,0.90987]
[1643703664992,0.68907828,2748.3,2747.8,0.90987]
[1643703665194,0.68907828,2748.3,2748.1,0.36966108]
[1643703665395,0.68907828,2748.4,2748.0,0.81467415]
[1643703665592,0.68907828,2748.4,2748.1,0.3]
[1643703666591,0.68907828,2748.4,2748.1,1.2098]
[1643703669743,0.68907828,2748.3,2748.1,1.2098]
[1643703671282,0.68907828,2748.4,2748.1,1.2098]
[1643703671482,0.87097828,2748.5,2748.1,1.2098]
[1643703671883,0.68907828,2748.4,2748.1,1.2098]
[1643703672484,0.68907828,2748.4,2748.0,0.38637747]
[1643703672891,0.68907828,2748.4,2747.9,1.27474443]
[1643703673288,0.68907828,2748.4,2747.9,0.36495443]
[1643703673487,0.58907828,2748.4,2747.9,0.36495443]
[1643703673685,0.58907828,2748.4,2747.8,0.1819]
[1643703673888,2.23843128,2748.6,2747.8,0.1819]
[1643703674091,0.91591178,2748.5,2747.8,0.4819]
[1643703674288,0.91591178,2748.5,2747.8,0.1819]
[1643703675130,2.96645698,2748.6,2747.8,0.62052779]
[1643703675332,0.91591178,2748.5,2747.8,0.62052779]
[1643703676736,0.91591178,2748.5,2747.8,1.53039779]
[1643703677136,2.05653128,2748.6,2747.8,1.53039779]
[1643703677336,0.81542899,2748.6,2747.8,1.53039779]
[1643703677536,0.91591178,2748.7,2747.8,1.53039779]
[1643703677537,0.91591178,2748.7,2747.9,1.85724533]
[1643703677736,0.91591178,2748.7,2748.0,1.09165]
[1643703677936,0.91591178,2748.8,2748.0,1.09165]
[1643703678339,0.91591178,2748.8,2748.3,0.42325192]
[1643703678583,0.91591178,2748.8,2748.3,1.18896527]
[1643703678584,1.09781178,2748.8,2748.3,1.18896527]
[1643703678786,0.91591178,2748.8,2748.3,2.39868527]
[1643703679387,0.91591178,2748.9,2748.3,2.09868527]
[1643703679587,0.91591178,2748.9,2748.3,2.39868527]
[1643703680388,2.45149192,2748.9,2748.3,2.39868527]
[1643703680793,2.45149192,2748.9,2748.3,3.30834527]
[1643703681392,0.1819,2749.0,2748.4,0.1819]
[1643703681393,1.53558014,2748.8,2748.4,0.1819]
[1643703681789,1.53558014,2748.7,2748.4,0.1819]
[1643703681989,1.53558014,2748.6,2748.3,3.49024527]
[1643703682226,1.53558014,2748.5,2748.3,2.58058527]
[1643703682431,1.17775828,2749.1,2748.3,2.58058527]
[1643703682432,1.53558014,2748.4,2748.3,2.39868527]
[1643703682831,2.45149192,2749.0,2748.3,2.39868527]
[1643703683232,2.45149192,2749.0,2748.3,0.72325192]
[1643703683433,0.68848697,2748.7,2748.3,0.72325192]
[1643703683634,0.68848697,2748.7,2748.3,1.63298192]
[1643703684037,1.53558014,2748.6,2748.3,1.63298192]
[1643703684237,0.68848697,2748.8,2748.3,0.72325192]
[1643703684238,1.53558014,2748.5,2748.3,0.72325192]
[1643703684538,1.53558014,2748.4,2748.3,0.72325192]
[1643703684736,0.68848697,2748.7,2748.3,0.72325192]
[1643703686391,0.68848697,2748.8,2748.3,0.72325192]
[1643703687193,0.68848697,2748.7,2748.3,0.72325192]
[1643703687390,0.68848697,2748.8,2748.4,0.90979]
[1643703687791,0.68848697,2748.7,2748.4,0.90979]
[1643703688791,0.68848697,2748.6,2748.4,0.90979]
[1643703689833,0.68848697,2748.6,2748.2,0.1819]
[1643703690037,0.1819,2748.8,2748.1,1.81936]
[1643703690038,0.68848697,2748.4,2748.1,1.81936]
[1643703690740,0.68848697,2748.4,2747.9,2.98492]
[1643703690944,0.1819,2748.6,2748.0,0.33717639]
[1643703690945,1.53251536,2748.5,2748.0,0.33717639]
[1643703691145,1.9578222,2748.5,2748.0,0.33717639]
[1643703691339,1.9578222,2748.5,2747.9,2.11972]
[1643703691540,0.68848697,2748.2,2747.9,2.11972]
[1643703691740,0.68848697,2748.3,2747.9,2.11972]
[1643703692541,0.68848697,2748.3,2747.9,0.84648785]
[1643703692742,0.68848697,2748.3,2747.9,0.48161664]
[1643703692944,0.68848697,2748.3,2747.9,0.18161664]
[1643703693795,0.68848697,2748.4,2747.9,0.18161664]
[1643703694593,0.442624,2748.3,2747.9,0.18161664]
[1643703695397,1.53914002,2748.4,2747.9,0.18161664]
[1643703695398,0.68848697,2748.4,2747.9,0.18161664]
[1643703695596,0.68848697,2748.5,2747.9,0.18161664]
[1643703695806,0.68848697,2748.4,2747.9,0.18161664]
[1643703696497,1.86539831,2748.5,2747.9,0.90985]
[1643703696699,1.86539831,2748.5,2748.0,0.1819]
[1643703696700,0.68848697,2748.5,2748.0,0.1819]
[1643703698137,0.68848697,2748.5,2748.0,1.4819]
[1643703698336,0.68848697,2748.4,2748.0,1.4819]
[1643703698541,0.68848697,2748.4,2748.1,0.3]
[1643703698742,0.68848697,2748.4,2748.0,1.4819]
[1643703699345,0.68848697,2748.3,2748.0,1.4819]
[1643703699544,0.68848697,2748.4,2748.1,0.3]
[1643703700642,0.68848697,2748.3,2748.1,0.3]
[1643703701686,0.68848697,2748.3,2748.0,1.3]
[1643703701889,0.68848697,2748.3,2748.1,0.3]
[1643703705227,0.68848697,2748.4,2748.1,0.3]
[1643703706233,0.68848697,2748.4,2748.1,1.20984]
[1643703708042,1.5356875,2748.3,2748.1,1.20984]
[1643703708243,2.22417447,2748.6,2748.1,1.20984]
[1643703708690,0.68848697,2748.6,2748.1,1.20984]
[1643703709090,0.68848697,2748.6,2748.2,0.35495254]
[1643703709294,0.68848697,2748.6,2748.2,1.26471254]
[1643703709491,2.22417447,2748.6,2748.2,0.90976]
[1643703709690,2.22417447,2748.6,2748.3,0.3]
[1643703710188,2.22417447,2748.6,2748.1,0.3]
[1643703710794,2.22417447,2748.6,2748.3,0.90976]
[1643703710991,2.22417447,2748.6,2748.3,1.20976]
[1643703711390,2.22417447,2748.6,2748.3,1.53442878]
[1643703711590,2.22417447,2748.6,2748.3,1.20976]
[1643703713130,2.22417447,2748.6,2748.0,2.76927523]
[1643703713735,2.22417447,2748.6,2748.3,0.90976]
[1643703713931,1.5356875,2748.5,2748.3,0.90976]
[1643703714131,1.5356875,2748.4,2748.3,0.90976]
[1643703714334,2.22417447,2748.6,2748.3,1.20976]
[1643703714934,1.5356875,2748.6,2748.3,1.20976]
[1643703715133,1.5356875,2748.5,2748.3,1.20976]
[1643703715634,1.5356875,2748.4,2748.3,1.20976]
[1643703716381,1.5356875,2748.6,2748.3,1.20976]
[1643703716579,1.5356875,2748.5,2748.3,1.20976]
[1643703716778,1.5356875,2748.4,2748.3,1.20976]
[1643703716982,1.5356875,2748.6,2748.3,1.20976]
[1643703719088,1.5356875,2748.6,2748.1,0.3]
[1643703719285,0.68848697,2748.5,2748.1,1.20983]
[1643703719739,2.22417447,2748.5,2748.1,1.20983]
[1643703720741,1.5356875,2748.4,2748.1,1.20983]
[1643703720942,0.68848697,2748.5,2748.1,1.20983]
[1643703722340,0.92864137,2748.2,2748.1,1.20983]
[1643703722746,2.46432887,2748.2,2748.1,1.20983]
[1643703724796,2.46432887,2748.2,2748.1,0.3]
[1643703724994,2.46432887,2748.2,2748.0,1.3]
[1643703725200,7.1356875,2748.1,2748.0,1.3]
[1643703725395,7.3175875,2748.1,2748.0,1.3]
[1643703726195,7.68477245,2748.1,2748.0,1.3]
[1643703726394,8.60068423,2748.1,2748.0,1.3]
[1643703727096,9.36168423,2748.1,2748.0,1.3]
[1643703727341,2.84577245,2748.1,2748.0,1.3]
[1643703728144,2.4785875,2748.1,2748.0,1.3]
[1643703728542,2.2966875,2748.1,2748.0,1.3]
[1643703733188,0.761,2748.0,2747.7,0.14396394]
[1643703733487,0.761,2747.8,2747.7,0.14396394]
[1643703733694,2.2966875,2747.8,2747.7,0.14396394]
[1643703736146,0.90221649,2747.8,2747.7,1.99016019]
[1643703736344,0.2,2748.4,2747.7,2.29016019]
[1643703736565,0.2,2748.4,2747.8,0.02421447]
[1643703736743,0.2,2748.4,2747.9,0.1819]
[1643703736945,0.2,2748.4,2748.1,0.36613424]
[1643703737144,0.68911884,2748.8,2748.2,5.75]
[1643703737348,0.68911884,2749.1,2748.3,0.1819]
[1643703737546,0.68911884,2749.1,2748.4,0.40661425]
[1643703737751,0.68911884,2749.2,2748.5,2.1819]
[1643703737945,0.91591178,2749.5,2748.5,2.69173198]
[1643703737946,0.68911884,2749.3,2748.5,2.69173198]
[1643703738145,0.68911884,2749.3,2749.0,0.38332604]
[1643703738348,0.68911884,2749.3,2749.0,0.40200662]
[1643703738592,0.68911884,2749.3,2749.0,0.38332604]
[1643703739393,0.68911884,2749.4,2749.0,0.38332604]
[1643703739592,0.68911884,2749.3,2749.0,0.38332604]
[1643703739792,0.68911884,2749.3,2749.0,1.29280604]
[1643703739994,0.68911884,2749.3,2749.1,0.3]
[1643703740192,1.28267019,2749.6,2749.1,0.3]
[1643703740193,0.68911884,2749.4,2749.1,0.3]
[1643703740396,0.68911884,2749.5,2749.2,1.91918819]
[1643703740594,0.68911884,2749.5,2749.1,0.6287]
[1643703741004,0.68911884,2749.5,2749.2,0.90939]
[1643703741194,0.68911884,2749.5,2749.2,0.92129934]
[1643703741828,0.68911884,2749.5,2749.2,1.61685277]
[1643703742245,0.68911884,2749.6,2749.2,0.01190934]
[1643703742652,1.23917606,2749.5,2749.2,0.01190934]
[1643703743448,1.59871144,2749.4,2749.2,0.01190934]
[1643703743652,0.1817,2749.3,2749.2,0.01190934]
[1643703744254,0.1817,2749.4,2749.2,0.01190934]
[1643703744852,0.1817,2749.5,2749.2,0.01190934]
[1643703746193,0.1817,2749.5,2749.1,0.44918984]
[1643703746493,0.68911884,2749.6,2748.9,0.01200645]
[1643703746693,1.39818679,2749.6,2748.9,0.01200645]
[1643703746897,0.87081884,2749.5,2748.9,0.01200645]
[1643703747199,0.68911884,2749.3,2748.9,0.01200645]
[1643703747398,3.06625031,2749.2,2748.9,0.01200645]
[1643703747797,0.4316342,2749.1,2748.9,0.01200645]
[1643703747996,2.1993923,2749.0,2748.9,0.01200645]
[1643703749200,1.24863139,2749.1,2748.9,0.01200645]
[1643703749402,1.43033139,2749.1,2748.9,0.01200645]
[1643703749601,1.91632036,2749.0,2748.9,0.01200645]
[1643703749839,2.09802036,2749.0,2748.9,0.01200645]
[1643703750261,0.1817,2749.0,2748.9,0.01200645]
[1643703750639,2.08632427,2749.0,2748.9,0.01200645]
[1643703750843,1.90462427,2749.0,2748.9,0.01200645]
[1643703751443,2.59374311,2749.0,2748.9,0.01200645]
[1643703751840,2.77544311,2749.0,2748.9,0.01200645]
[1643703753043,2.08632427,2749.0,2748.1,0.1817]
[1643703753243,0.9098348,2748.8,2748.1,0.1817]
[1643703753491,0.9098348,2748.8,2747.9,0.4819]
[1643703753689,0.9098348,2748.8,2747.9,0.1819]
[1643703753991,0.9098348,2748.8,2747.9,1.09164]
[1643703754188,0.87081884,2749.0,2747.9,2.00138]
[1643703754390,0.1819,2748.9,2748.3,0.3807352]
[1643703754787,0.1819,2749.0,2748.3,0.3807352]
[1643703754989,2.84746523,2749.1,2748.4,0.1819]
[1643703755391,1.9387047,2749.0,2748.4,0.1819]
[1643703755691,1.0916564,2748.9,2748.3,0.3807352]
[1643703755892,1.93775023,2749.1,2748.4,0.1819]
[1643703756096,1.53526349,2749.0,2748.4,0.1819]
[1643703756291,3.41385832,2749.0,2748.4,0.1819]
[1643703756532,1.53526349,2748.9,2748.2,0.1819]
[1643703756992,1.53526349,2748.9,2748.2,0.4819]
[1643703757242,1.53526349,2748.9,2748.2,0.82317819]
[1643703757846,1.53526349,2748.9,2748.2,0.34127819]
[1643703758849,1.53526349,2748.9,2748.2,1.25100819]
[1643703759049,1.53526349,2748.9,2748.3,0.3]
[1643703760853,1.53526349,2748.9,2748.7,0.31671607]
[1643703761310,1.53526349,2748.8,2748.7,0.31671607]
[1643703761504,1.53526349,2749.1,2748.7,0.31671607]
[1643703761705,1.53526349,2749.1,2748.4,0.1817]
[1643703762606,1.53526349,2749.1,2748.6,0.43370532]
[1643703764618,3.41788544,2749.1,2748.6,0.43370532]